bitfinex/quotes_BTCUSD_20241001
["timestamp","ask_amount","ask_price","bid_price","bid_amount"]
[1727747400543,0.70203254,63607.0,63606.0,0.176323]
[1727747400733,0.62244383,63607.0,63606.0,0.176323]
[1727747402448,0.61044383,63607.0,63606.0,0.176323]
[1727747402700,0.62344383,63607.0,63606.0,0.176323]
[1727747403928,0.60944383,63607.0,63606.0,0.176323]
[1727747404172,0.62344383,63607.0,63606.0,0.176323]
[1727747404646,0.61044383,63607.0,63606.0,0.176323]
[1727747405853,0.64808613,63607.0,63606.0,0.176323]
[1727747408478,0.62344383,63607.0,63606.0,0.176323]
[1727747409440,0.4406728,63607.0,63606.0,0.176323]
[1727747409670,0.3406728,63607.0,63606.0,0.176323]
[1727747409893,0.52344383,63607.0,63606.0,0.176323]
[1727747411855,0.54808605,63607.0,63606.0,0.176323]
[1727747413578,0.54808605,63607.0,63606.0,0.000823]
[1727747413828,0.65308605,63607.0,63606.0,0.000823]
[1727747414063,0.76903286,63607.0,63606.0,0.000823]
[1727747414295,0.76908252,63607.0,63606.0,0.000823]
[1727747414524,0.62844383,63607.0,63606.0,0.000823]
[1727747414777,0.63044383,63607.0,63606.0,0.000823]
[1727747415016,0.76628365,63607.0,63606.0,0.000823]
[1727747415255,0.75328365,63607.0,63606.0,0.000823]
[1727747415494,0.65608735,63607.0,63606.0,0.000823]
[1727747415734,0.59130044,63607.0,63606.0,0.000823]
[1727747415981,0.57730044,63607.0,63606.0,0.000823]
[1727747416215,0.59130044,63607.0,63606.0,0.000823]
[1727747416675,0.71249086,63607.0,63606.0,0.000823]
[1727747416908,0.70049086,63607.0,63606.0,0.000823]
[1727747417279,0.71449086,63607.0,63606.0,0.000823]
[1727747417280,0.57930044,63607.0,63606.0,0.000823]
[1727747418162,0.57930044,63607.0,63595.0,0.082]
[1727747418163,0.314467,63600.0,63595.0,0.082]
[1727747418366,0.314467,63600.0,63594.0,0.001646]
[1727747418367,0.37722912,63595.0,63594.0,0.001646]
[1727747418583,0.53555727,63595.0,63594.0,0.001646]
[1727747418788,0.37722912,63595.0,63594.0,0.001646]
[1727747419556,0.38722912,63595.0,63594.0,0.001646]
[1727747419958,0.37722912,63595.0,63594.0,0.001646]
[1727747420423,0.39122912,63595.0,63594.0,0.001646]
[1727747421907,0.40522912,63595.0,63594.0,0.001646]
[1727747422816,0.39122912,63595.0,63594.0,0.001646]
[1727747423039,0.40522912,63595.0,63594.0,0.001646]
[1727747423273,0.39122912,63595.0,63594.0,0.001646]
[1727747423685,0.40522912,63595.0,63594.0,0.001646]
[1727747424370,0.185245,63595.0,63594.0,0.173946]
[1727747424617,0.44627072,63595.0,63594.0,0.173946]
[1727747424874,0.32987735,63595.0,63594.0,0.173946]
[1727747425318,0.31587735,63595.0,63594.0,0.173946]
[1727747425743,0.47091895,63595.0,63594.0,0.173946]
[1727747426203,0.45691895,63595.0,63594.0,0.173946]
[1727747426446,0.47091895,63595.0,63594.0,0.173946]
[1727747428477,0.44627072,63595.0,63594.0,0.173946]
[1727747428706,0.30522912,63595.0,63594.0,0.173946]
[1727747428970,0.44634636,63595.0,63594.0,0.173946]
[1727747429409,0.30522912,63595.0,63594.0,0.173946]
[1727747430779,0.4463568,63595.0,63594.0,0.173946]
[1727747431230,0.30522912,63595.0,63594.0,0.173946]
[1727747440742,0.185245,63595.0,63594.0,0.173946]
[1727747440960,0.185245,63595.0,63594.0,0.196946]
[1727747440961,0.30284803,63595.0,63594.0,0.196946]
[1727747441171,0.302842,63595.0,63594.0,0.196946]
[1727747441634,0.171245,63595.0,63594.0,0.196946]
[1727747442032,0.18188965,63595.0,63594.0,0.196946]
[1727747442255,0.19188965,63595.0,63594.0,0.173946]
[1727747442482,0.19788965,63595.0,63594.0,0.173946]
[1727747442709,0.18188965,63595.0,63594.0,0.173946]
[1727747442914,0.164245,63595.0,63594.0,0.173946]
[1727747443095,0.169245,63595.0,63594.0,0.173946]
[1727747444150,0.162245,63595.0,63594.0,0.173946]
[1727747444556,0.173245,63595.0,63594.0,0.173946]
[1727747445119,0.162245,63595.0,63594.0,0.173946]
[1727747445331,0.172245,63595.0,63594.0,0.173946]
[1727747445537,0.167245,63595.0,63594.0,0.173946]
[1727747445963,0.1998898,63595.0,63594.0,0.173946]
[1727747448422,0.175245,63595.0,63594.0,0.173946]
[1727747452495,0.175245,63595.0,63594.0,0.18302619]
[1727747452989,0.175245,63595.0,63594.0,0.173946]
[1727747453642,0.175245,63595.0,63594.0,0.18302619]
[1727747453854,0.018,63595.0,63594.0,0.20602619]
[1727747454069,0.175245,63595.0,63594.0,0.20602619]
[1727747454540,0.26939369,63595.0,63594.0,0.20602619]
[1727747455185,0.25939369,63595.0,63594.0,0.20602619]
[1727747455443,0.25139369,63595.0,63594.0,0.20602619]
[1727747455682,0.26539369,63595.0,63594.0,0.20602619]
[1727747455913,0.284038,63595.0,63594.0,0.20602619]
[1727747456342,0.287038,63595.0,63594.0,0.20602619]
[1727747456807,0.279038,63595.0,63594.0,0.20602619]
[1727747457212,0.284038,63595.0,63594.0,0.20602619]
[1727747457858,0.28400956,63595.0,63594.0,0.20602619]
[1727747458438,0.165245,63595.0,63594.0,0.196946]
[1727747458650,0.28289531,63595.0,63594.0,0.196946]
[1727747459905,0.28289531,63595.0,63594.0,0.20602619]
[1727747461674,0.30753924,63595.0,63594.0,0.196946]
[1727747463314,0.18988893,63595.0,63594.0,0.196946]
[1727747463986,0.18988893,63595.0,63594.0,0.20602966]
[1727747464451,0.30753924,63595.0,63594.0,0.20602966]
[1727747466045,0.30749709,63595.0,63594.0,0.20602966]
[1727747466264,0.18988893,63595.0,63594.0,0.20602966]
[1727747468287,0.165245,63595.0,63594.0,0.20602966]
[1727747471679,0.18988911,63595.0,63594.0,0.20602966]
[1727747471896,0.18988911,63595.0,63594.0,0.173946]
[1727747474389,0.33107514,63595.0,63594.0,0.173946]
[1727747478333,0.30643103,63595.0,63594.0,0.173946]
[1727747480744,0.306364,63595.0,63594.0,0.173946]
[1727747481441,0.165245,63595.0,63594.0,0.173946]
[1727747483035,0.18988985,63595.0,63594.0,0.173946]
[1727747484747,0.33100428,63595.0,63594.0,0.173946]
[1727747484952,0.18988985,63595.0,63594.0,0.173946]
[1727747486773,0.18988985,63595.0,63594.0,0.196946]
[1727747487215,0.18988985,63595.0,63594.0,0.20603943]
[1727747488245,0.165245,63595.0,63594.0,0.20603943]
[1727747491867,0.18988937,63595.0,63594.0,0.20603943]
[1727747492778,0.165245,63595.0,63594.0,0.20603943]
[1727747495140,0.165245,63595.0,63594.0,0.196946]
[1727747495902,0.18988956,63595.0,63594.0,0.196946]
[1727747498452,0.165245,63595.0,63594.0,0.20603694]
[1727747499741,0.165245,63595.0,63594.0,0.196946]
[1727747500377,0.30635529,63595.0,63594.0,0.196946]
[1727747502112,0.165245,63595.0,63594.0,0.196946]
[1727747502314,0.30635574,63595.0,63594.0,0.196946]
[1727747502548,0.30635574,63595.0,63594.0,0.173946]
[1727747502775,0.18988972,63595.0,63594.0,0.001646]
[1727747503894,0.18488972,63595.0,63594.0,0.001646]
[1727747504111,0.34363879,63595.0,63594.0,0.001646]
[1727747504347,0.19188972,63595.0,63594.0,0.001646]
[1727747504783,0.18488972,63595.0,63594.0,0.001646]
[1727747504987,0.19288972,63595.0,63594.0,0.001646]
[1727747505227,0.18988972,63595.0,63594.0,0.001646]
[1727747505437,0.19488972,63595.0,63594.0,0.001646]
[1727747505650,0.18988972,63595.0,63594.0,0.001646]
[1727747506114,0.19588972,63595.0,63594.0,0.001646]
[1727747507401,0.18788972,63595.0,63594.0,0.001646]
[1727747507617,0.19688972,63595.0,63594.0,0.001646]
[1727747508053,0.19088972,63595.0,63594.0,0.001646]
[1727747508485,0.173245,63595.0,63594.0,0.001646]
[1727747510080,0.33189446,63595.0,63594.0,0.001646]
[1727747510310,0.173245,63595.0,63594.0,0.001646]
[1727747510993,0.164245,63595.0,63594.0,0.001646]
[1727747511421,0.174245,63595.0,63594.0,0.001646]
[1727747511856,0.19889246,63595.0,63594.0,0.001646]
[1727747512062,0.19189246,63595.0,63594.0,0.001646]
[1727747512300,0.20289246,63595.0,63594.0,0.001646]
[1727747512478,0.19189246,63595.0,63594.0,0.001646]
[1727747512688,0.157245,63595.0,63594.0,0.001646]
[1727747512994,0.170245,63595.0,63594.0,0.001646]
[1727747513145,0.184245,63595.0,63594.0,0.001646]
[1727747513600,0.170245,63595.0,63594.0,0.001646]
[1727747513809,0.184245,63595.0,63594.0,0.001646]
[1727747514651,0.34277448,63595.0,63594.0,0.001646]
[1727747515775,0.36742178,63595.0,63594.0,0.001646]
[1727747517744,0.32887642,63595.0,63594.0,0.001646]
[1727747518404,0.30422912,63595.0,63594.0,0.001646]
[1727747518837,0.184245,63595.0,63594.0,0.001646]
[1727747519056,0.184245,63595.0,63594.0,0.078846]
[1727747519057,0.30422912,63595.0,63594.0,0.078846]
[1727747519502,0.44512432,63595.0,63594.0,0.078846]
[1727747519979,0.43112432,63595.0,63594.0,0.078846]
[1727747520183,0.43012432,63595.0,63594.0,0.078846]
[1727747520625,0.41812432,63595.0,63594.0,0.078846]
[1727747521051,0.42812432,63595.0,63594.0,0.078846]
[1727747521497,0.43612432,63595.0,63594.0,0.078846]
[1727747521941,0.29522912,63595.0,63594.0,0.078846]
[1727747523065,0.28522912,63595.0,63594.0,0.078846]
[1727747523283,0.27722912,63595.0,63594.0,0.078846]
[1727747523494,0.28822912,63595.0,63594.0,0.078846]
[1727747523918,0.27722912,63595.0,63594.0,0.078846]
[1727747524130,0.28822912,63595.0,63594.0,0.078846]
[1727747524573,0.29722912,63595.0,63594.0,0.078846]
[1727747525641,0.3218746,63595.0,63594.0,0.078846]
[1727747528466,0.29722912,63595.0,63594.0,0.078846]
[1727747528686,0.177245,63595.0,63594.0,0.001646]
[1727747528934,0.29722912,63595.0,63594.0,0.001646]
[1727747530059,0.28622912,63595.0,63594.0,0.001646]
[1727747530279,0.29822912,63595.0,63594.0,0.001646]
[1727747531357,0.28922912,63595.0,63594.0,0.001646]
[1727747531589,0.29922912,63595.0,63594.0,0.001646]
[1727747535986,0.32387553,63595.0,63594.0,0.001646]
[1727747538599,0.29922912,63595.0,63594.0,0.001646]
[1727747541744,0.32387545,63595.0,63594.0,0.001646]
[1727747542910,0.45773685,63595.0,63594.0,0.001646]
[1727747545738,0.29922912,63595.0,63594.0,0.001646]
[1727747545998,0.32387488,63595.0,63594.0,0.001646]
[1727747546686,0.31187488,63595.0,63594.0,0.001646]
[1727747547664,0.30187488,63595.0,63594.0,0.001646]
[1727747547905,0.31387488,63595.0,63594.0,0.001646]
[1727747548167,0.32687488,63595.0,63594.0,0.001646]
[1727747548417,0.30222912,63595.0,63594.0,0.001646]
[1727747548659,0.28922912,63595.0,63594.0,0.001646]
[1727747549135,0.30322912,63595.0,63594.0,0.001646]
[1727747551093,0.28922912,63595.0,63594.0,0.001646]
[1727747551317,0.27722912,63595.0,63594.0,0.001646]
[1727747551591,0.29122912,63595.0,63594.0,0.001646]
[1727747551879,0.31587634,63595.0,63594.0,0.001646]
[1727747552327,0.31487634,63595.0,63594.0,0.001646]
[1727747552793,0.30422912,63595.0,63594.0,0.001646]
[1727747555807,0.184245,63595.0,63594.0,0.001646]
[1727747556067,0.30422912,63595.0,63594.0,0.001646]
[1727747556323,0.32887619,63595.0,63594.0,0.001646]
[1727747558449,0.30422912,63595.0,63594.0,0.001646]
[1727747567267,0.32887589,63595.0,63594.0,0.001646]
[1727747568394,0.30422912,63595.0,63594.0,0.001646]
[1727747575706,0.32887581,63595.0,63594.0,0.001646]
[1727747577642,0.32887581,63595.0,63594.0,0.093846]
[1727747578481,0.30422912,63595.0,63594.0,0.093846]
[1727747579600,0.157245,63595.0,63594.0,0.093846]
[1727747579812,0.27722912,63595.0,63594.0,0.093846]
[1727747580025,0.27722912,63595.0,63594.0,0.10389339]
[1727747580237,0.4183411,63595.0,63594.0,0.10389339]
[1727747580449,0.27722912,63595.0,63594.0,0.093846]
[1727747580656,0.4183411,63595.0,63594.0,0.093846]
[1727747580894,0.41843503,63595.0,63594.0,0.093846]
[1727747581334,0.43243503,63595.0,63594.0,0.093846]
[1727747581573,0.44643503,63595.0,63594.0,0.093846]
[1727747581790,0.45708169,63595.0,63594.0,0.093846]
[1727747582030,0.47108169,63595.0,63594.0,0.093846]
[1727747582269,0.47108169,63595.0,63594.0,0.001646]
[1727747582270,0.48508169,63595.0,63594.0,0.001646]
[1727747582513,0.48508169,63595.0,63583.0,0.001646]
[1727747582514,0.157272,63584.0,63583.0,0.001646]
[1727747582763,0.43571392,63584.0,63583.0,0.001646]
[1727747582993,0.157277,63582.0,63580.0,0.001646]
[1727747583231,0.3137348,63582.0,63580.0,0.001646]
[1727747583697,0.45492018,63582.0,63580.0,0.001646]
[1727747583925,0.3137348,63582.0,63580.0,0.001646]
[1727747584557,0.45481608,63582.0,63580.0,0.001646]
[1727747585396,0.43371892,63582.0,63580.0,0.001646]
[1727747585807,0.48637178,63582.0,63580.0,0.001646]
[1727747586015,0.47237178,63582.0,63580.0,0.001646]
[1727747586230,0.45837178,63582.0,63580.0,0.001646]
[1727747586500,0.48637178,63582.0,63580.0,0.001646]
[1727747588433,0.46171892,63582.0,63580.0,0.001646]
[1727747588875,0.3417348,63582.0,63581.0,0.001223]
[1727747589115,0.3417348,63582.0,63581.0,0.079123]
[1727747589116,0.46171892,63582.0,63581.0,0.079123]
[1727747589341,0.57914242,63582.0,63581.0,0.079123]
[1727747589567,0.46171892,63582.0,63581.0,0.079123]
[1727747589812,0.44771892,63582.0,63581.0,0.079123]
[1727747590229,0.3277348,63582.0,63581.0,0.079123]
[1727747590472,0.44771892,63582.0,63581.0,0.079123]
[1727747590894,0.56517694,63582.0,63581.0,0.079123]
[1727747591103,0.57917694,63582.0,63581.0,0.079123]
[1727747591530,0.55117694,63582.0,63581.0,0.079123]
[1727747591760,0.57582694,63582.0,63581.0,0.079123]
[1727747591972,0.59982694,63582.0,63581.0,0.079123]
[1727747592180,0.48236892,63582.0,63581.0,0.079123]
[1727747592386,0.49236892,63582.0,63581.0,0.079123]
[1727747592790,0.46771892,63582.0,63581.0,0.079123]
[1727747594131,0.45671892,63582.0,63581.0,0.079123]
[1727747594589,0.44471892,63582.0,63581.0,0.079123]
[1727747594791,0.45471892,63582.0,63581.0,0.079123]
[1727747597054,0.45471892,63582.0,63581.0,0.001223]
[1727747597055,0.59563384,63582.0,63581.0,0.001223]
[1727747597283,0.45471892,63582.0,63581.0,0.001223]
[1727747601385,0.47937077,63582.0,63581.0,0.001223]
[1727747602473,0.45471892,63582.0,63581.0,0.001223]
[1727747603500,0.46674774,63582.0,63581.0,0.001223]
[1727747603712,0.45471892,63582.0,63581.0,0.001223]
[1727747604843,0.3347348,63582.0,63581.0,0.001223]
[1727747605110,0.45471892,63582.0,63581.0,0.001223]
[1727747605314,0.59554315,63582.0,63581.0,0.083523]
[1727747605555,0.45471892,63582.0,63581.0,0.083523]
[1727747606014,0.45471892,63582.0,63581.0,0.173523]
[1727747606880,0.47937006,63582.0,63581.0,0.173523]
[1727747608373,0.45471892,63582.0,63581.0,0.173523]
[1727747611414,0.47937002,63582.0,63581.0,0.173523]
[1727747611710,0.62022031,63582.0,63581.0,0.173523]
[1727747611948,0.47937002,63582.0,63581.0,0.173523]
[1727747612679,0.59556921,63582.0,63581.0,0.173523]
[1727747614298,0.595616,63582.0,63581.0,0.173523]
[1727747616350,0.45471892,63582.0,63581.0,0.173523]
[1727747616800,0.45471892,63582.0,63581.0,0.091223]
[1727747617147,0.45471892,63582.0,63581.0,0.001223]
[1727747617148,0.47937061,63582.0,63581.0,0.001223]
[1727747617365,0.63787982,63582.0,63581.0,0.001223]
[1727747617844,0.47937061,63582.0,63581.0,0.001223]
[1727747618076,0.61322813,63582.0,63581.0,0.001223]
[1727747619988,0.45471892,63582.0,63581.0,0.001223]
[1727747622573,0.47937142,63582.0,63581.0,0.001223]
[1727747623506,0.63788063,63582.0,63581.0,0.001223]
[1727747623724,0.47937142,63582.0,63581.0,0.001223]
[1727747623977,0.71516116,63582.0,63581.0,0.001223]
[1727747624232,0.68427142,63582.0,63581.0,0.001223]
[1727747624442,0.65961892,63582.0,63581.0,0.001223]
[1727747625356,0.64961892,63582.0,63581.0,0.001223]
[1727747625606,0.66361892,63582.0,63581.0,0.001223]
[1727747625837,0.66361892,63582.0,63571.0,0.000823]
[1727747625838,0.005,63578.0,63571.0,0.000823]
[1727747626084,0.005,63578.0,63553.0,0.000823]
[1727747626085,0.257326,63562.0,63560.0,0.23578974]
[1727747626299,0.69250021,63562.0,63560.0,0.23578974]
[1727747626563,0.69250021,63562.0,63561.0,0.01150747]
[1727747626564,0.69239037,63562.0,63561.0,0.01150747]
[1727747626808,0.53376792,63562.0,63561.0,0.0004]
[1727747627294,0.55842757,63562.0,63561.0,0.0004]
[1727747627787,0.56742757,63562.0,63561.0,0.0004]
[1727747628007,0.58142757,63562.0,63561.0,0.0004]
[1727747628570,0.54276792,63562.0,63561.0,0.0004]
[1727747628808,0.54776792,63562.0,63561.0,0.0004]
[1727747629523,0.55930484,63562.0,63561.0,0.0004]
[1727747629751,0.70015534,63562.0,63561.0,0.0004]
[1727747630220,0.73881568,63562.0,63561.0,0.0004]
[1727747630671,0.72480659,63562.0,63561.0,0.0004]
[1727747630909,0.71080659,63562.0,63561.0,0.0004]
[1727747631151,0.72480659,63562.0,63561.0,0.0004]
[1727747631640,0.56996518,63562.0,63561.0,0.0004]
[1727747631858,0.59796518,63562.0,63561.0,0.0004]
[1727747632809,0.57330484,63562.0,63561.0,0.0004]
[1727747633249,0.55930484,63562.0,63561.0,0.0004]
[1727747633976,0.57330484,63562.0,63561.0,0.0004]
[1727747634416,0.56176792,63562.0,63561.0,0.0004]
[1727747635311,0.4417838,63562.0,63561.0,0.0004]
[1727747635562,0.56176792,63562.0,63561.0,0.0775]
[1727747635772,0.58642873,63562.0,63561.0,0.078323]
[1727747636498,0.48642873,63562.0,63561.0,0.078323]
[1727747636719,0.47242873,63562.0,63561.0,0.078323]
[1727747636941,0.45842873,63562.0,63561.0,0.078323]
[1727747637187,0.48642873,63562.0,63561.0,0.078323]
[1727747637623,0.47242873,63562.0,63561.0,0.078323]
[1727747638059,0.56176792,63562.0,63561.0,0.001223]
[1727747638517,0.70260933,63562.0,63561.0,0.001223]
[1727747639619,0.54776792,63562.0,63561.0,0.001223]
[1727747639915,0.53376792,63562.0,63561.0,0.001223]
[1727747640127,0.56176792,63562.0,63561.0,0.001223]
[1727747640344,0.54776792,63562.0,63561.0,0.001223]
[1727747640770,0.53376792,63562.0,63561.0,0.001223]
[1727747641036,0.54776792,63562.0,63561.0,0.001223]
[1727747641290,0.70760933,63562.0,63561.0,0.001223]
[1727747641519,0.55276792,63562.0,63561.0,0.001223]
[1727747641761,0.69334336,63562.0,63561.0,0.001223]
[1727747642467,0.57742941,63562.0,63561.0,0.001223]
[1727747642717,0.55276792,63562.0,63561.0,0.001223]
[1727747643033,0.53876792,63562.0,63561.0,0.001223]
[1727747643275,0.56676792,63562.0,63561.0,0.001223]
[1727747643489,0.55276792,63562.0,63561.0,0.001223]
[1727747643740,0.54776792,63562.0,63561.0,0.001223]
[1727747644399,0.56176792,63562.0,63561.0,0.001223]
[1727747644643,0.53376792,63562.0,63561.0,0.001223]
[1727747644870,0.54776792,63562.0,63561.0,0.001223]
[1727747645115,0.58642908,63562.0,63561.0,0.001223]
[1727747647757,0.59142908,63562.0,63561.0,0.001223]
[1727747647988,0.59342908,63562.0,63561.0,0.001223]
[1727747648209,0.59342908,63562.0,63554.0,0.00259]
[1727747648210,0.37732812,63555.0,63554.0,0.00259]
[1727747648458,0.53378592,63555.0,63554.0,0.00259]
[1727747648928,0.257346,63554.0,63553.0,0.000823]
[1727747649144,0.4138038,63554.0,63553.0,0.000823]
[1727747650296,0.4248038,63554.0,63553.0,0.000823]
[1727747651008,0.4358038,63554.0,63553.0,0.000823]
[1727747651225,0.157366,63546.0,63545.0,0.0124628]
[1727747651476,0.43380792,63546.0,63545.0,0.1906628]
[1727747651951,0.50397771,63546.0,63545.0,0.1906628]
[1727747652192,0.43380792,63546.0,63545.0,0.1906628]
[1727747652424,0.50398029,63546.0,63545.0,0.1906628]
[1727747652786,0.43380792,63546.0,63545.0,0.1906628]
[1727747653333,0.44680792,63546.0,63545.0,0.1906628]
[1727747653565,0.45980792,63546.0,63545.0,0.1906628]
[1727747654461,0.52997174,63546.0,63545.0,0.1906628]
[1727747654931,0.45980792,63546.0,63545.0,0.1906628]
[1727747655150,0.48447322,63546.0,63545.0,0.1906628]
[1727747655421,0.5546344,63546.0,63545.0,0.1906628]
[1727747656311,0.55464186,63546.0,63545.0,0.1906628]
[1727747658567,0.52997656,63546.0,63545.0,0.1906628]
[1727747658797,0.45980792,63546.0,63545.0,0.1906628]
[1727747659545,0.53000444,63546.0,63545.0,0.1906628]
[1727747659773,0.45980792,63546.0,63545.0,0.1914858]
[1727747660679,0.55336611,63546.0,63545.0,0.1914858]
[1727747662742,0.45980792,63546.0,63545.0,0.1914858]
[1727747664620,0.57675565,63546.0,63545.0,0.1914858]
[1727747666003,0.60157597,63546.0,63545.0,0.1914858]
[1727747666700,0.4844734,63546.0,63545.0,0.1914858]
[1727747668079,0.36448928,63546.0,63545.0,0.1914858]
[1727747668300,0.4844734,63546.0,63545.0,0.1914858]
[1727747668552,0.45980792,63546.0,63545.0,0.1914858]
[1727747670126,0.60058583,63546.0,63545.0,0.1914858]
[1727747670363,0.45980792,63546.0,63545.0,0.1914858]
[1727747670660,0.60058583,63546.0,63545.0,0.1914858]
[1727747670905,0.45980792,63546.0,63545.0,0.1914858]
[1727747671160,0.45980792,63546.0,63545.0,0.2144858]
[1727747671161,0.2772533,63546.0,63545.0,0.2144858]
[1727747671394,0.27725281,63546.0,63545.0,0.2144858]
[1727747671623,0.27725842,63546.0,63545.0,0.2144858]
[1727747671844,0.170366,63546.0,63545.0,0.2144858]
[1727747672068,0.26429258,63546.0,63545.0,0.2144858]
[1727747672285,0.26429212,63546.0,63545.0,0.2144858]
[1727747672507,0.157366,63546.0,63545.0,0.2144858]
[1727747672742,0.25729685,63546.0,63545.0,0.2144858]
[1727747673425,0.26329685,63546.0,63545.0,0.2144858]
[1727747673895,0.012,63546.0,63545.0,0.2144858]
[1727747674126,0.05896873,63546.0,63545.0,0.21763283]
[1727747674356,0.169366,63546.0,63545.0,0.23827999]
[1727747674581,0.012,63546.0,63545.0,0.23513296]
[1727747675026,0.169366,63546.0,63545.0,0.23513296]
[1727747675269,0.012,63546.0,63545.0,0.23513296]
[1727747675717,0.012,63546.0,63545.0,0.39250096]
[1727747676169,0.0366623,63546.0,63545.0,0.39250096]
[1727747678399,0.012,63546.0,63545.0,0.39250096]
[1727747678656,0.006,63546.0,63545.0,0.39250096]
[1727747678877,0.012,63546.0,63545.0,0.39250096]
[1727747679323,0.04696873,63551.0,63548.0,0.157359]
[1727747679555,0.23578974,63550.0,63549.0,0.331557]
[1727747679744,0.23578974,63550.0,63549.0,0.37511859]
[1727747679969,0.04696873,63552.0,63550.0,0.023]
[1727747680191,0.04696873,63552.0,63551.0,0.1972]
[1727747680430,0.04697168,63552.0,63551.0,0.21774849]
[1727747681360,0.04861768,63553.0,63552.0,0.1954]
[1727747681589,0.04861768,63553.0,63552.0,0.21591073]
[1727747681844,0.20596568,63553.0,63552.0,0.21591073]
[1727747682296,0.04861768,63553.0,63552.0,0.21591073]
[1727747682740,0.21096568,63553.0,63552.0,0.21591073]
[1727747682963,0.2109562,63553.0,63552.0,0.21591073]
[1727747683161,0.0536082,63553.0,63552.0,0.21591073]
[1727747683380,0.2109562,63553.0,63552.0,0.21591073]
[1727747683593,0.2169562,63553.0,63552.0,0.21591073]
[1727747683816,0.0596082,63553.0,63552.0,0.21591073]
[1727747684032,0.2169562,63553.0,63552.0,0.21591073]
[1727747684252,0.0596082,63553.0,63552.0,0.37326173]
[1727747684478,0.012646,63553.0,63552.0,0.37326173]
[1727747686336,0.006646,63553.0,63552.0,0.37326173]
[1727747686554,0.007646,63553.0,63552.0,0.37326173]
[1727747686987,0.002646,63553.0,63552.0,0.37526173]
[1727747687634,0.003646,63553.0,63552.0,0.37526173]
[1727747688294,0.02830439,63553.0,63552.0,0.37526173]
[1727747688532,0.003646,63553.0,63552.0,0.37526173]
[1727747691448,0.02830436,63553.0,63552.0,0.37526173]
[1727747691673,0.003646,63553.0,63552.0,0.37526173]
[1727747695967,0.02830419,63553.0,63552.0,0.37526173]
[1727747696398,0.02830419,63553.0,63552.0,0.37608473]
[1727747698415,0.003646,63553.0,63552.0,0.37608473]
[1727747708145,0.02830417,63553.0,63552.0,0.37608473]
[1727747708593,0.003646,63553.0,63552.0,0.37608473]
[1727747710990,0.002646,63553.0,63552.0,0.37608473]
[1727747711465,0.02730426,63553.0,63552.0,0.37608473]
[1727747711926,0.02630426,63553.0,63552.0,0.37408473]
[1727747712166,0.02630426,63553.0,63552.0,0.37708473]
[1727747712631,0.001646,63553.0,63552.0,0.37708473]
[1727747716906,0.02630579,63553.0,63552.0,0.37708473]
[1727747718462,0.001646,63553.0,63552.0,0.37708473]
[1727747721621,0.02630615,63553.0,63552.0,0.37708473]
[1727747722803,0.001646,63553.0,63552.0,0.37708473]
[1727747726277,0.02630465,63553.0,63552.0,0.37708473]
[1727747726549,0.07333372,63553.0,63552.0,0.37708473]
[1727747728476,0.04867507,63553.0,63552.0,0.37708473]
[1727747728733,0.04870788,63553.0,63552.0,0.37708473]
[1727747729200,0.07218961,63553.0,63552.0,0.37708473]
[1727747729440,0.001646,63553.0,63552.0,0.37708473]
[1727747730412,0.07218961,63553.0,63552.0,0.37708473]
[1727747731590,0.09684814,63553.0,63552.0,0.37708473]
[1727747735868,0.07218961,63553.0,63552.0,0.37708473]
[1727747736112,0.001646,63553.0,63552.0,0.53354253]
[1727747737086,0.001646,63553.0,63552.0,0.53054253]
[1727747737360,0.002646,63553.0,63552.0,0.75852665]
[1727747737579,0.003646,63553.0,63552.0,0.86747735]
[1727747737802,0.003646,63553.0,63552.0,0.88447984]
[1727747738261,0.003646,63553.0,63552.0,0.88147984]
[1727747738262,0.002646,63553.0,63552.0,0.88147984]
[1727747738488,0.003646,63553.0,63552.0,0.87600245]
[1727747738704,0.02730211,63553.0,63552.0,0.87000245]
[1727747738994,0.02730211,63553.0,63552.0,0.87300245]
[1727747739237,0.02830211,63553.0,63552.0,0.82258114]
[1727747739448,0.02830211,63553.0,63552.0,0.8395118]
[1727747739664,0.02830211,63553.0,63552.0,0.82258114]
[1727747740092,0.003646,63553.0,63552.0,0.82258114]
[1727747740313,0.003646,63553.0,63552.0,0.79980236]
[1727747741163,0.003646,63553.0,63552.0,0.79780236]
[1727747741384,0.003646,63553.0,63552.0,0.66781824]
[1727747742051,0.003646,63553.0,63552.0,0.66281824]
[1727747742502,0.003646,63553.0,63552.0,0.38336044]
[1727747742757,0.003646,63553.0,63552.0,0.21096044]
[1727747742758,0.05064878,63553.0,63552.0,0.21096044]
[1727747742977,0.003646,63553.0,63552.0,0.21096044]
[1727747743104,0.07415018,63553.0,63552.0,0.21096044]
[1727747743742,0.07315018,63553.0,63552.0,0.20496044]
[1727747743952,0.07315018,63553.0,63552.0,0.23296044]
[1727747744175,0.07315018,63553.0,63552.0,0.22496044]
[1727747744376,0.07415018,63553.0,63552.0,0.22796044]
[1727747744594,0.09980994,63553.0,63552.0,0.20242044]
[1727747744794,0.09880994,63553.0,63552.0,0.19942044]
[1727747745212,0.09980994,63553.0,63552.0,0.20242044]
[1727747745627,0.07528951,63553.0,63552.0,0.19942044]
[1727747746077,0.07628951,63553.0,63552.0,0.19942044]
[1727747746519,0.07428951,63553.0,63552.0,0.19342044]
[1727747746722,0.07428951,63553.0,63552.0,0.19642044]
[1727747746927,0.07428951,63553.0,63552.0,0.19342044]
[1727747747143,0.07328951,63553.0,63552.0,0.19342044]
[1727747747346,0.07328951,63553.0,63552.0,0.19842044]
[1727747748432,0.001646,63553.0,63552.0,0.19842044]
[1727747751755,0.02630547,63553.0,63552.0,0.19842044]
[1727747752836,0.001646,63553.0,63552.0,0.19842044]
[1727747757432,0.02630557,63553.0,63552.0,0.19842044]
[1727747757655,0.02630557,63553.0,63552.0,0.29022044]
[1727747758288,0.001646,63553.0,63552.0,0.29022044]
[1727747761400,0.02630551,63553.0,63552.0,0.29022044]
[1727747763717,0.001646,63553.0,63552.0,0.13286944]
[1727747764627,0.04863737,63553.0,63552.0,0.13286944]
[1727747765534,0.001646,63553.0,63552.0,0.13286944]
[1727747765756,0.04863737,63553.0,63552.0,0.13286944]
[1727747765983,0.20598537,63553.0,63552.0,0.04106944]
[1727747766219,0.20598537,63553.0,63552.0,0.01806944]
[1727747766220,0.158994,63553.0,63552.0,0.01806944]
[1727747766457,0.327694,63553.0,63552.0,0.005823]
[1727747766714,0.327694,63553.0,63552.0,0.000823]